fUST/lending_fUST_20240727
["ID","MTS","AMOUNT","RATE_DAILY","PERIOD"]
[333380390,1722084642274,-624.318645,0.00014041,2]
[333380392,1722084642284,-624.318645,0.00014041,2]
[333380394,1722084642294,-400.703469,0.00014041,2]
[333380396,1722084642304,-400.703469,0.00014041,2]
[333380398,1722084642314,-151.0,0.00014041,2]
[333380400,1722084642324,-151.0,0.00014041,2]
[333380403,1722084642334,-151.0,0.00014041,2]
[333380407,1722084642344,-733.501136,0.00014041,2]
[333380410,1722084642354,-733.501136,0.00014041,2]
[333380413,1722084642365,-316.333159,0.00014041,2]
[333380416,1722084642375,-316.333159,0.00014041,2]
[333380418,1722084642385,-422.337938,0.00014041,2]
[333380420,1722084642395,-422.337938,0.00014041,2]
[333380422,1722084642405,-151.0,0.00014041,2]
[333380424,1722084642415,-151.0,0.00014041,2]
[333380426,1722084642425,-151.0,0.00014041,2]
[333380428,1722084642435,-286.252696,0.00014041,2]
[333380430,1722084642445,-151.0,0.00014041,2]
[333380432,1722084642455,-150.112233,0.000141,2]
[333380434,1722084642464,-221.0222378,0.00014103,2]
[333380436,1722084642474,-5308.13158001,0.00014112,2]
[333380438,1722084642484,-367.57032676,0.00014209,2]
[333380440,1722084642494,-1000.0,0.0001422,2]
[333380442,1722084642503,-500.0,0.00014246,2]
[333380444,1722084642513,-500.0,0.00014246,2]
[333380446,1722084642524,-888.16,0.00014246,2]
[333380449,1722084642535,-500.0,0.00014246,2]
[333380451,1722084642546,-500.0,0.00014246,2]
[333380453,1722084642557,-500.0,0.00014246,2]
[333380455,1722084642568,-500.0,0.00014246,2]
[333380457,1722084642577,-500.0,0.00014246,2]
[333380459,1722084642586,-572.01,0.00014246,2]
[333380461,1722084642597,-553.17,0.00014246,2]
[333380463,1722084642607,-500.0,0.00014246,2]
[333380465,1722084642618,-360.486407,0.00014246,2]
[333380468,1722084642629,-360.486407,0.00014246,2]
[333380470,1722084642639,-500.0,0.00014246,2]
[333380472,1722084642651,-500.0,0.00014246,2]
[333380474,1722084642661,-608.81669668,0.00014246,2]
[333380476,1722084642672,-675.26,0.00014246,2]
[333380478,1722084642681,-151.0,0.00014246,2]
[333380480,1722084642690,-686.53,0.00014246,2]
[333380482,1722084642699,-151.0,0.00014246,2]
[333380484,1722084642709,-516.79,0.00014246,2]
[333380486,1722084642719,-500.0,0.00014246,2]
[333380488,1722084642728,-206.274627,0.00014246,2]
[333380490,1722084642738,-827.22,0.00014246,2]
[333380492,1722084642747,-800.35,0.00014246,2]
[333380493,1722084642756,-500.0,0.00014246,2]
[333380494,1722084642765,-208.48,0.00014246,2]
[333380495,1722084642775,-500.0,0.00014246,2]
[333380496,1722084642785,-500.0,0.00014246,2]
[333380497,1722084642795,-500.0,0.00014246,2]
[333380498,1722084642804,-500.0,0.00014246,2]
[333380499,1722084642814,-730.73,0.00014246,2]
[333380500,1722084642823,-3295.96,0.00014246,2]
[333380501,1722084642832,-724.48,0.00014246,2]
[333380502,1722084642841,-500.0,0.00014246,2]
[333380503,1722084642851,-826.81,0.00014246,2]
[333380504,1722084642860,-500.0,0.00014246,2]
[333380505,1722084642870,-500.0,0.00014246,2]
[333380506,1722084642880,-500.0,0.00014246,2]
[333380507,1722084642892,-1493.96,0.00014246,2]
[333380522,1722084643057,-500.0,0.00014246,2]
[333380525,1722084643070,-1067.32,0.00014246,2]
[333380527,1722084643079,-5805.96,0.00014246,2]
[333380529,1722084643092,-571.3,0.00014246,2]
[333380531,1722084643102,-500.0,0.00014246,2]
[333380532,1722084643111,-2463.82,0.00014246,2]
[333380535,1722084643121,-500.0,0.00014246,2]
[333380537,1722084643133,-813.63,0.00014246,2]
[333380539,1722084643142,-1102.88,0.00014246,2]
[333380540,1722084643151,-1737.32,0.00014246,2]
[333380542,1722084643160,-547.73,0.00014246,2]
[333380544,1722084643170,-1223.18,0.00014246,2]
[333380546,1722084643179,-1071.35,0.00014246,2]
[333380549,1722084643190,-500.0,0.00014246,2]
[333380551,1722084643200,-631.29,0.00014246,2]
[333380553,1722084643210,-500.0,0.00014246,2]
[333380555,1722084643222,-500.0,0.00014246,2]
[333380557,1722084643233,-500.0,0.00014246,2]
[333380559,1722084643244,-500.0,0.00014246,2]
[333380561,1722084643255,-986.24,0.00014246,2]
[333380563,1722084643265,-547.72,0.00014246,2]
[333380565,1722084643274,-1014.86,0.00014246,2]
[333380567,1722084643284,-500.0,0.00014246,2]
[333380569,1722084643293,-803.18,0.00014246,2]
[333380571,1722084643303,-522.84,0.00014246,2]
[333380573,1722084643313,-500.0,0.00014246,2]
[333380575,1722084643324,-1692.5,0.00014246,2]
[333380578,1722084643335,-4177.23,0.00014246,2]
[333380579,1722084643344,-2421.58,0.00014246,2]
[333380581,1722084643353,-500.0,0.00014246,2]
[333380584,1722084643363,-769.41,0.00014246,2]
[333380586,1722084643372,-500.0,0.00014246,2]
[333380588,1722084643381,-843.46,0.00014246,2]
[333380589,1722084643391,-573.24,0.00014246,2]
[333380591,1722084643400,-777.45,0.00014246,2]
[333380593,1722084643410,-898.06,0.00014246,2]
[333380595,1722084643419,-500.0,0.00014246,2]
[333380598,1722084643438,-500.0,0.00014246,2]
[333380601,1722084643449,-901.6,0.00014246,2]
[333380603,1722084643459,-500.0,0.00014246,2]
[333380605,1722084643469,-883.86,0.00014246,2]
[333380607,1722084643479,-500.0,0.00014246,2]
[333380609,1722084643490,-500.0,0.00014246,2]
[333380611,1722084643501,-1263.27,0.00014246,2]
[333380613,1722084643514,-1026.37,0.00014246,2]
[333380615,1722084643524,-584.13,0.00014246,2]
[333380617,1722084643536,-1195.88,0.00014246,2]
[333380620,1722084643548,-500.0,0.00014246,2]
[333380622,1722084643558,-500.0,0.00014246,2]
[333380624,1722084643568,-2192.08,0.00014246,2]
[333380626,1722084643578,-580.93,0.00014246,2]
[333380628,1722084643588,-500.0,0.00014246,2]
[333380630,1722084643598,-1743.93,0.00014246,2]
[333380632,1722084643608,-500.0,0.00014246,2]
[333380634,1722084643619,-500.0,0.00014246,2]
[333380636,1722084643631,-1133.43,0.00014246,2]
[333380638,1722084643642,-618.2125,0.00014247,2]
[333380640,1722084643653,-164.734375,0.00014247,2]
[333380642,1722084643663,-150.112233,0.000144,2]
[333380644,1722084643674,-150.112233,0.000144,2]
[333380646,1722084643684,-151.356,0.00014498,2]
[333380648,1722084643695,-603.0,0.000145,2]
[333380650,1722084643706,-3200.0,0.00014503,2]
[333380652,1722084643719,-500.0,0.0001452,2]
[333380655,1722084643731,-500.0,0.0001452,2]
[333380657,1722084643743,-888.16,0.0001452,2]
[333380659,1722084643754,-449.96815821,0.0001452,2]
[333380661,1722084643765,-500.0,0.0001452,2]
[333380663,1722084643775,-500.0,0.0001452,2]
[333380665,1722084643785,-500.0,0.0001452,2]
[333380667,1722084643795,-500.0,0.0001452,2]
[333380669,1722084643807,-572.01,0.0001452,2]
[333380671,1722084643820,-553.17,0.0001452,2]
[333380673,1722084643832,-500.0,0.0001452,2]
[333380675,1722084643842,-500.0,0.0001452,2]
[333380677,1722084643852,-500.0,0.0001452,2]
[333380678,1722084643862,-675.26,0.0001452,2]
[333380680,1722084643871,-686.53,0.0001452,2]
[333380682,1722084643880,-516.79,0.0001452,2]
[333380684,1722084643890,-500.0,0.0001452,2]
[333380686,1722084643900,-827.22,0.0001452,2]
[333380688,1722084643909,-800.35,0.0001452,2]
[333380690,1722084643919,-500.0,0.0001452,2]
[333380692,1722084643929,-500.0,0.0001452,2]
[333380694,1722084643939,-166.283153,0.0001452,2]
[333380696,1722084643948,-500.0,0.0001452,2]
[333380698,1722084643958,-500.0,0.0001452,2]
[333380700,1722084643967,-500.0,0.0001452,2]
[333380702,1722084643977,-168.278438,0.0001452,2]
[333380704,1722084643987,-168.278438,0.0001452,2]
[333380706,1722084643997,-151.0,0.0001452,2]
[333380709,1722084644007,-730.73,0.0001452,2]
[333380711,1722084644016,-188.867999,0.0001452,2]
[333380713,1722084644026,-624.318645,0.0001452,2]
[333380714,1722084644035,-624.318645,0.0001452,2]
[333380716,1722084644044,-3295.96,0.0001452,2]
[333380718,1722084644054,-724.48,0.0001452,2]
[333380720,1722084644068,-500.0,0.0001452,2]
[333380722,1722084644077,-826.81,0.0001452,2]
[333380725,1722084644087,-500.0,0.0001452,2]
[333380726,1722084644097,-232.54857518,0.0001452,2]
[333380729,1722084644107,-500.0,0.0001452,2]
[333380730,1722084644117,-1493.96,0.0001452,2]
[333380732,1722084644126,-500.0,0.0001452,2]
[333380734,1722084644136,-1067.32,0.0001452,2]
[333380736,1722084644145,-5805.96,0.0001452,2]
[333380738,1722084644155,-571.3,0.0001452,2]
[333380741,1722084644165,-500.0,0.0001452,2]
[333380743,1722084644175,-2463.82,0.0001452,2]
[333380745,1722084644185,-500.0,0.0001452,2]
[333380747,1722084644195,-813.63,0.0001452,2]
[333380749,1722084644205,-400.703469,0.0001452,2]
[333380751,1722084644215,-1102.88,0.0001452,2]
[333380753,1722084644225,-1737.32,0.0001452,2]
[333380755,1722084644234,-400.703469,0.0001452,2]
[333380757,1722084644244,-547.73,0.0001452,2]
[333380759,1722084644254,-151.0,0.0001452,2]
[333380761,1722084644263,-1223.18,0.0001452,2]
[333380763,1722084644273,-1071.35,0.0001452,2]
[333380764,1722084644282,-642.63163277,0.0001452,2]
[333380766,1722084644293,-631.29,0.0001452,2]
[333380768,1722084644303,-500.0,0.0001452,2]
[333380771,1722084644313,-500.0,0.0001452,2]
[333380772,1722084644322,-500.0,0.0001452,2]
[333380774,1722084644331,-151.0,0.0001452,2]
[333380776,1722084644341,-500.0,0.0001452,2]
[333380779,1722084644351,-986.24,0.0001452,2]
[333380780,1722084644361,-547.72,0.0001452,2]
[333380782,1722084644371,-1014.86,0.0001452,2]
[333380784,1722084644381,-151.0,0.0001452,2]
[333380786,1722084644390,-500.0,0.0001452,2]
[333380788,1722084644400,-803.18,0.0001452,2]
[333380790,1722084644410,-522.84,0.0001452,2]
[333380792,1722084644419,-500.0,0.0001452,2]
[333380794,1722084644429,-1692.5,0.0001452,2]
[333380796,1722084644438,-733.501136,0.0001452,2]
[333380798,1722084644447,-4177.23,0.0001452,2]
[333380800,1722084644457,-2421.58,0.0001452,2]
[333380802,1722084644466,-733.501136,0.0001452,2]
[333380804,1722084644476,-500.0,0.0001452,2]
[333380806,1722084644486,-769.41,0.0001452,2]
[333380808,1722084644495,-500.0,0.0001452,2]
[333380810,1722084644505,-843.46,0.0001452,2]
[333380812,1722084644515,-573.24,0.0001452,2]
[333380814,1722084644525,-316.333159,0.0001452,2]
[333380816,1722084644535,-777.45,0.0001452,2]
[333380818,1722084644545,-898.06,0.0001452,2]
[333380820,1722084644554,-316.333159,0.0001452,2]
[333380821,1722084644564,-500.0,0.0001452,2]
[333380823,1722084644573,-500.0,0.0001452,2]
[333380825,1722084644583,-901.6,0.0001452,2]
[333380827,1722084644593,-500.0,0.0001452,2]
[333380829,1722084644602,-883.86,0.0001452,2]
[333380831,1722084644611,-500.0,0.0001452,2]
[333380833,1722084644621,-500.0,0.0001452,2]
[333380835,1722084644631,-1263.27,0.0001452,2]
[333380837,1722084644640,-1026.37,0.0001452,2]
[333380839,1722084644649,-584.13,0.0001452,2]
[333380841,1722084644659,-422.337938,0.0001452,2]
[333380843,1722084644669,-1195.88,0.0001452,2]
[333380844,1722084644678,-500.0,0.0001452,2]
[333380846,1722084644687,-422.337938,0.0001452,2]
[333380848,1722084644699,-536.18,0.0001452,2]
[333380850,1722084644709,-2192.08,0.0001452,2]
[333380852,1722084644718,-580.93,0.0001452,2]
[333380854,1722084644728,-500.0,0.0001452,2]
[333380856,1722084644737,-151.0,0.0001452,2]
[333380858,1722084644746,-151.0,0.0001452,2]
[333380860,1722084644756,-151.0,0.0001452,2]
[333380862,1722084644766,-1743.93,0.0001452,2]
[333380864,1722084644776,-500.0,0.0001452,2]
[333380866,1722084644785,-500.0,0.0001452,2]
[333380868,1722084644795,-1133.43,0.0001452,2]
[333380870,1722084644805,-151.0,0.0001452,2]
[333380872,1722084644814,-587.9283936,0.00014521,2]
[333380874,1722084644823,-151.0,0.0001454,2]
[333380876,1722084644833,-505.0,0.0001454,2]
[333380878,1722084644842,-1409.0,0.0001454,2]
[333380880,1722084644852,-514.36552132,0.0001469,2]
[333380882,1722084644861,-169.94671537,0.0001469,2]
[333380884,1722084644871,-994.48897622,0.0001469,2]
[333380886,1722084644880,-1011.39369225,0.0001469,2]
[333380888,1722084644889,-815.78914639,0.0001469,2]
[333380890,1722084644899,-360.486407,0.0001469,2]
[333380892,1722084644908,-360.486407,0.0001469,2]
[333380894,1722084644918,-150.112233,0.000147,2]
[333380896,1722084644928,-500.0,0.00014794,2]
[333380898,1722084644937,-500.0,0.00014794,2]
[333380900,1722084644946,-888.16,0.00014794,2]
[333380902,1722084644955,-500.0,0.00014794,2]
[333380904,1722084644965,-396.95555104,0.00014794,2]
[333380996,1722084645795,-193.7689272,0.00012694,2]
[333380998,1722084645805,-151.0,0.00013972,2]
[333381000,1722084645815,-3411.62201792,0.00013972,2]
[333382214,1722084659651,264.66611855,9.9e-05,2]
[333382218,1722084659673,8.70724376,9.9e-05,2]
[333382438,1722084681181,246.17168524,0.00010959,2]
[333382439,1722084681205,2.12831476,0.00010959,2]
[333382440,1722084691953,159.94326824,0.00010959,2]
[333382441,1722084721600,228.73677946,9.9e-05,2]
[333382442,1722084721625,44.63658285,9.9e-05,2]
[333382443,1722084781232,19447.75666053,9.9e-05,2]
[333382444,1722084819145,3782.59755445,9.9e-05,2]
[333382445,1722084819176,273.37336231,9.9e-05,2]
[333382446,1722084827130,273.37336231,9.9e-05,2]
[333382447,1722084828203,218.17416967,9.9e-05,2]
[333382448,1722084831055,635.75253026,9.999e-05,2]
[333382449,1722084834186,7407.05117866,9.9e-05,2]
[333382450,1722084835928,273.37336231,9.9e-05,2]
[333382451,1722084843931,273.37336231,9.9e-05,2]
[333382452,1722084852096,273.37336231,9.9e-05,2]
[333382453,1722084860021,273.37336231,9.9e-05,2]
[333382454,1722084868193,273.37336231,9.9e-05,2]
[333382455,1722084876789,273.37336231,9.9e-05,2]
[333382456,1722084884035,493.72845005,9.999e-05,2]
[333382457,1722084885614,273.37336231,9.9e-05,2]
[333382458,1722084889529,848.53287184,9.999e-05,2]
[333382459,1722084891775,154.90193854,9.999e-05,2]
[333382460,1722084894209,273.37336231,9.9e-05,2]
[333382461,1722084919213,189.78141437,9.999e-05,2]
[333382462,1722084940325,180.29524211,9.999e-05,2]
[333382463,1722084968237,1130.19877891,9.999e-05,2]
[333382464,1722084980923,375.64530467,9.999e-05,2]
[333382465,1722085215511,208.55751505,9.999e-05,2]
[333382466,1722085215847,533.38063441,9.999e-05,2]
[333382467,1722085333164,196.26871937,9.999e-05,2]
[333382469,1722085456264,663.56673998,9.999e-05,2]
[333382470,1722085476355,156.44936091,9.999e-05,2]
[333382471,1722085490815,279.35753325,9.999e-05,2]
[333382472,1722085504761,291.45867184,9.999e-05,2]
[333382473,1722085509896,531.35557493,9.999e-05,2]
[333382474,1722085511664,726.77830691,9.999e-05,2]
[333382475,1722085512824,778.87203636,9.999e-05,2]
[333382476,1722085513689,783.26953764,9.999e-05,2]
[333382484,1722085529636,179.60556637,9.999e-05,2]
[333382485,1722085530346,162.90193781,9.999e-05,2]
[333382486,1722085532818,600.24609405,9.999e-05,2]
[333382487,1722085534108,195.31034636,9.999e-05,2]
[333382488,1722085536690,202.0999801,9.999e-05,2]
[333382489,1722085537324,-300.0,0.00010758,2]
[333382490,1722085537346,-192.60962302,0.00010758,2]
[333382491,1722085542152,154.94392859,9.999e-05,2]
[333382492,1722085543662,209.65653934,9.999e-05,2]
[333382493,1722085543840,287.48002697,0.0001,2]
[333382494,1722085549605,156.65797586,9.999e-05,2]
[333382495,1722085550616,188.04294313,9.999e-05,2]
[333382496,1722085550959,181.22338865,9.999e-05,2]
[333382497,1722085562214,567.99228217,9.999e-05,2]
[333382498,1722085566207,413.48920953,9.999e-05,2]
[333382499,1722085569089,341.69630942,9.999e-05,2]
[333382500,1722085571154,403.32733275,9.999e-05,2]
[333382501,1722085577368,160.00381439,9.999e-05,2]
[333382502,1722085583104,248.83425172,9.999e-05,2]
[333382504,1722085584644,154.65203293,9.999e-05,2]
[333382505,1722085588486,519.06293676,9.999e-05,2]
[333382506,1722085589915,154.86617689,9.999e-05,2]
[333382507,1722085593319,257.98438268,9.999e-05,2]
[333382508,1722085596718,194.61181113,9.999e-05,2]
[333382509,1722085596867,154.65203293,0.0001,2]
[333382510,1722085598187,404.34085405,9.999e-05,2]
[333382511,1722085603106,353.71289471,9.999e-05,2]
[333382512,1722085608201,191.97542682,9.999e-05,2]
[333382513,1722085608393,459.16779533,9.999e-05,2]
[333382514,1722085613743,246.29525277,9.999e-05,2]
[333382515,1722085626096,319.40039305,9.999e-05,2]
[333382516,1722085626445,156.572996,9.999e-05,2]
[333382517,1722085633110,157.64183891,9.999e-05,2]
[333382518,1722085650096,-262.70516695,0.00010758,2]
[333382519,1722085666083,201.273204,9.999e-05,2]
[333382521,1722085686286,214.90665471,9.9e-05,2]
[333382522,1722085687867,154.83731274,0.0001,2]
[333382523,1722085694602,154.83731274,9.999e-05,2]
[333382525,1722085747116,-250.0,0.00010335,2]
[333382526,1722085749163,-300.0,0.00010542,2]
[333382527,1722085749191,-300.0,0.00010542,2]
[333382528,1722085749219,-24900.0,0.00010543,2]
[333382529,1722085749251,-18903.9900784,0.00010759,2]
[333382530,1722085749279,-705.23989656,0.00010859,2]
[333382531,1722085749304,-240.198569,0.00010872,2]
[333382532,1722085749328,-240.198569,0.00010902,2]
[333382533,1722085749355,-240.198569,0.00010932,2]
[333382534,1722085749384,-372.49,0.00010959,2]
[333382535,1722085749411,-310.41,0.00010959,2]
[333382536,1722085749434,-258.67,0.00010959,2]
[333382537,1722085749460,-300.26,0.00010959,2]
[333382538,1722085749486,-250.22,0.00010959,2]
[333382539,1722085749511,-208.51,0.00010959,2]
[333382540,1722085749535,-173.76,0.00010959,2]
[333382541,1722085749561,-868.84,0.00010959,2]
[333382542,1722085749599,-240.198569,0.00010962,2]
[333382543,1722085749625,-240.198569,0.00010992,2]
[333382544,1722085749652,-240.198569,0.00011021,2]
[333382545,1722085749682,-240.198569,0.00011051,2]
[333382546,1722085749709,-240.198569,0.00011081,2]
[333382547,1722085749736,-240.198569,0.00011111,2]
[333382548,1722085749763,-240.198569,0.00011141,2]
[333382549,1722085749789,-240.198569,0.0001117,2]
[333382550,1722085749818,-240.198569,0.000112,2]
[333382551,1722085749844,-240.198569,0.0001123,2]
[333382552,1722085749870,-240.198569,0.0001126,2]
[333382553,1722085749896,-240.198569,0.0001129,2]
[333382554,1722085749923,-240.198569,0.0001132,2]
[333382555,1722085749949,-240.198569,0.00011349,2]
[333382556,1722085749974,-240.198569,0.00011379,2]
[333382557,1722085750000,-240.198569,0.00011409,2]
[333382558,1722085750025,-240.198569,0.00011439,2]
[333382559,1722085750049,-420.0,0.0001159,2]
[333382560,1722085750074,-420.0,0.00011596,2]
[333382561,1722085762088,-191.47619051,0.000124,2]
[333382562,1722085762111,-81.8971718,0.000124,2]
[333382563,1722085808303,154.69833824,0.00012119,2]
[333382583,1722085833157,-121.63140541,0.000124,2]
[333382584,1722085833168,-456.32261951,0.00013283,2]
[333382585,1722085833178,-160.612973,0.00013425,2]
[333382586,1722085833188,-169.75646547,0.00013488,2]
[333382587,1722085833197,-169.75646547,0.00013543,2]
[333382588,1722085833207,-300.0,0.00013577,2]
[333382589,1722085833216,-279.0,0.00013577,2]
[333382590,1722085833226,-64542.0396185,0.00013578,2]
[333382591,1722085833235,-2000.0,0.0001358,2]
[333382592,1722085833245,-12068.30250578,0.00013588,2]
[333382934,1722085838036,-52473.73711272,0.00013588,2]
[333382935,1722085838046,-88888.0,0.00013588,2]
[333382936,1722085838055,-169.75646547,0.00013598,2]
[333382937,1722085838065,-1011.39369225,0.000136,2]
[333382938,1722085838074,-150.112233,0.000136,2]
[333382939,1722085838084,-193626.118855,0.0001368,2]
[333382940,1722085838094,-30401.55740619,0.0001369,5]
[333382941,1722085838104,-153646.6261927,0.0001369,2]
[333382942,1722085838118,-1545.73,0.00013698,2]
[333382943,1722085838128,-1545.73,0.00013698,2]
[333382944,1722085838137,-1545.73,0.00013698,2]
[333382945,1722085838147,-1545.73,0.00013698,2]
[333382946,1722085838157,-1545.73,0.00013698,2]
[333382947,1722085838167,-1545.73,0.00013698,2]
[333382948,1722085838176,-1545.73,0.00013698,2]
[333382949,1722085838186,-1545.73,0.00013698,2]
[333382950,1722085838196,-1545.73,0.00013698,2]
[333382951,1722085838206,-1545.73,0.00013698,2]
[333382952,1722085838216,-1545.73,0.00013698,2]
[333382953,1722085838226,-1545.73,0.00013698,2]
[333382954,1722085838236,-1545.73,0.00013698,2]
[333382955,1722085838246,-1545.73,0.00013698,2]
[333382956,1722085838256,-1545.73,0.00013698,2]
[333382957,1722085838266,-1545.73,0.00013698,2]
[333382958,1722085838276,-1545.73,0.00013698,2]
[333382959,1722085838285,-1545.73,0.00013698,2]
[333382960,1722085838295,-1545.73,0.00013698,2]
[333382961,1722085838305,-1545.73,0.00013698,2]
[333382962,1722085838315,-1545.73,0.00013698,2]
[333382963,1722085838324,-1545.73,0.00013698,2]
[333382964,1722085838334,-1545.73,0.00013698,2]
[333382965,1722085838344,-1545.81233203,0.00013698,2]
[333382966,1722085838354,-500.0,0.00013698,2]
[333382967,1722085838366,-500.22635326,0.00013698,2]
[333382968,1722085838375,-500.0,0.00013698,2]
[333382969,1722085838387,-501.99856816,0.00013698,2]
[333382970,1722085838396,-501.20994446,0.00013698,2]
[333382971,1722085838406,-500.0,0.00013698,2]
[333382972,1722085838416,-500.0,0.00013698,2]
[333382973,1722085838426,-500.0,0.00013698,2]
[333382974,1722085838436,-500.0,0.00013698,2]
[333382975,1722085838447,-548.18,0.00013698,2]
[333382976,1722085838456,-500.0,0.00013698,2]
[333382977,1722085838466,-500.0,0.00013698,2]
[333382978,1722085838476,-500.0,0.00013698,2]
[333382979,1722085838485,-500.0,0.00013698,2]
[333382980,1722085838495,-792.76,0.00013698,2]
[333382981,1722085838505,-500.0,0.00013698,2]
[333382982,1722085838515,-500.0,0.00013698,2]
[333382983,1722085838525,-500.0,0.00013698,2]
[333382984,1722085838535,-500.0,0.00013698,2]
[333382985,1722085838545,-500.0,0.00013698,2]
[333382986,1722085838555,-500.0,0.00013698,2]
[333382987,1722085838565,-500.0,0.00013698,2]
[333382988,1722085838574,-500.0,0.00013698,2]
[333382989,1722085838584,-500.0,0.00013698,2]
[333382990,1722085838594,-851.15,0.00013698,2]
[333382991,1722085838604,-500.0,0.00013698,2]
[333382992,1722085838615,-500.0,0.00013698,2]
[333382993,1722085838626,-500.0,0.00013698,2]
[333382994,1722085838636,-500.0,0.00013698,2]
[333382995,1722085838809,-500.0,0.00013698,2]
[333382996,1722085838819,-500.0,0.00013698,2]
[333382997,1722085838828,-500.90753046,0.00013698,2]
[333382998,1722085838838,-500.0,0.00013698,2]
[333382999,1722085838848,-503.79320357,0.00013698,2]
[333383000,1722085838859,-500.0,0.00013698,2]
[333383001,1722085838869,-500.0,0.00013698,2]
[333383002,1722085838879,-500.0,0.00013698,2]
[333383003,1722085838888,-500.0,0.00013698,2]
[333383004,1722085838898,-500.0,0.00013698,2]
[333383005,1722085838909,-500.0,0.00013698,2]
[333383006,1722085838919,-500.0,0.00013698,2]
[333383007,1722085838928,-500.0,0.00013698,2]
[333383008,1722085838940,-500.0,0.00013698,2]
[333383009,1722085838949,-500.0,0.00013698,2]
[333383010,1722085838960,-500.0,0.00013698,2]
[333383011,1722085838969,-419.96502977,0.00013698,2]
[333383012,1722085838979,-150.0,0.00013698,2]
[333383013,1722085838989,-440.54186579,0.00013698,2]
[333383014,1722085838998,-500.0,0.00013698,2]
[333383015,1722085839008,-553.98,0.00013698,2]
[333383016,1722085839018,-500.0,0.00013698,2]
[333383017,1722085839028,-500.0,0.00013698,2]
[333383018,1722085839037,-500.0,0.00013698,2]
[333383019,1722085839047,-500.0,0.00013698,2]
[333383020,1722085839057,-677.56,0.00013698,2]
[333383021,1722085839066,-500.0,0.00013698,2]
[333383022,1722085839076,-500.0,0.00013698,2]
[333383023,1722085839085,-500.0,0.00013698,2]
[333383024,1722085839095,-690.62,0.00013698,2]
[333383025,1722085839104,-500.73041792,0.00013698,2]
[333383026,1722085839117,-500.0,0.00013698,2]
[333383027,1722085839127,-519.87,0.00013698,2]
[333383028,1722085839137,-151.0,0.00013698,2]
[333383029,1722085839146,-500.0,0.00013698,2]
[333383030,1722085839157,-500.0,0.00013698,2]
[333383031,1722085839166,-500.0,0.00013698,2]
[333383032,1722085839176,-500.0,0.00013698,2]
[333383033,1722085839186,-500.0,0.00013698,2]
[333383034,1722085839196,-500.0,0.00013698,2]
[333383035,1722085839205,-501.59095229,0.00013698,2]
[333383036,1722085839217,-500.0,0.00013698,2]
[333383037,1722085839226,-500.0,0.00013698,2]
[333383038,1722085839236,-767.0,0.00013698,2]
[333383039,1722085839245,-500.0,0.00013698,2]
[333383040,1722085839255,-500.0,0.00013698,2]
[333383041,1722085839266,-705.29,0.00013698,2]
[333383042,1722085839276,-500.0,0.00013698,2]
[333383043,1722085839285,-500.0,0.00013698,2]
[333383044,1722085839294,-500.0,0.00013698,2]
[333383045,1722085839304,-501.469138,0.00013698,2]
[333383046,1722085839315,-500.0,0.00013698,2]
[333383047,1722085839325,-500.0,0.00013698,2]
[333383048,1722085839335,-500.0,0.00013698,2]
[333383049,1722085839344,-500.0,0.00013698,2]